fUSD/lending_fUSD_20260529
["ID","MTS","AMOUNT","RATE_DAILY","PERIOD"]
[423257553,1779999083000,-1366.20308932,0.00039183,2]
[423257541,1779999083000,-300.0,0.00039178,2]
[423257552,1779999083000,-169.03743193,0.00039178,2]
[423257583,1779999083000,-307.39,0.00039524,60]
[423257587,1779999083000,-1000.0,0.0003953,68]
[423257584,1779999083000,-1000.0,0.0003953,65]
[423257585,1779999083000,-1000.0,0.0003953,66]
[423257588,1779999083000,-1000.0,0.0003953,69]
[423257589,1779999083000,-1000.0,0.0003953,70]
[423257595,1779999083000,-503.25749695,0.0003953,64]
[423257603,1779999083000,-500.0,0.00039531,120]
[423257605,1779999083000,-500.0,0.00039531,120]
[423257604,1779999083000,-500.0,0.00039531,120]
[423257594,1779999083000,-1000.0,0.0003953,63]
[423257597,1779999083000,-500.0,0.00039531,120]
[423257596,1779999083000,-1000.0,0.00039531,120]
[423257606,1779999083000,-500.0,0.00039531,120]
[423257598,1779999083000,-500.0,0.00039531,120]
[423257599,1779999083000,-500.0,0.00039531,120]
[423257601,1779999083000,-500.0,0.00039531,120]
[423257600,1779999083000,-500.0,0.00039531,120]
[423257608,1779999083000,-500.0,0.00039531,120]
[423257609,1779999083000,-500.0,0.00039531,120]
[423257607,1779999083000,-500.0,0.00039531,120]
[423257610,1779999083000,-500.0,0.00039531,120]
[423257616,1779999083000,-500.0,0.00039531,120]
[423257613,1779999083000,-500.0,0.00039531,120]
[423257615,1779999083000,-500.0,0.00039531,120]
[423257614,1779999083000,-500.0,0.00039531,120]
[423257612,1779999083000,-500.0,0.00039531,120]
[423257611,1779999083000,-500.0,0.00039531,120]
[423257549,1779999083000,-300.0,0.00039178,2]
[423257586,1779999083000,-1000.0,0.0003953,67]
[423257581,1779999083000,-315.32,0.000395,2]
[423257602,1779999083000,-500.0,0.00039531,120]
[423257591,1779999083000,-1000.0,0.0003953,72]
[423257554,1779999083000,-1402.94304417,0.00039183,7]
[423257582,1779999083000,-601.0,0.00039505,17]
[423257556,1779999083000,-262.31350798,0.00039237,7]
[423257566,1779999083000,-5000.0,0.00039361,2]
[423257564,1779999083000,-500.0,0.00039356,60]
[423257565,1779999083000,-5000.0,0.00039361,2]
[423257555,1779999083000,-1371.80208204,0.00039184,7]
[423257557,1779999083000,-157.59999999,0.00039269,60]
[423257558,1779999083000,-219.30712701,0.00039283,120]
[423257559,1779999083000,-153.0,0.000393,120]
[423257560,1779999083000,-458.20085285,0.00039332,7]
[423257562,1779999083000,-262.31350798,0.0003934,7]
[423257563,1779999083000,-2297.0,0.00039348,11]
[423257567,1779999083000,-250.0,0.00039361,2]
[423257568,1779999083000,-253.22942588,0.00039361,2]
[423257561,1779999083000,-387.03725326,0.00039334,2]
[423257592,1779999083000,-1000.0,0.0003953,61]
[423257593,1779999083000,-1000.0,0.0003953,62]
[423257569,1779999083000,-253.02,0.00039372,2]
[423257590,1779999083000,-1000.0,0.0003953,71]
[423257580,1779999083000,-160.0,0.000395,2]
[423257578,1779999083000,-108727.0914667,0.000395,7]
[423257571,1779999083000,-3331.396441,0.00039374,2]
[423257574,1779999083000,-418.0,0.00039402,2]
[423257573,1779999083000,-160.0,0.000394,46]
[423257576,1779999083000,-434743.74366522,0.0003949,2]
[423257572,1779999083000,-175.313137,0.00039374,2]
[423257579,1779999083000,-160.0,0.000395,2]
[423257575,1779999083000,-262.31350798,0.00039441,7]
[423257570,1779999083000,-458.20085285,0.00039374,7]
[423257577,1779999083000,-200.06,0.00039492,7]
[423257635,1779999084000,-3100.0,0.00039531,120]
[423257636,1779999084000,-3100.0,0.00039531,120]
[423257638,1779999084000,-3100.0,0.00039531,120]
[423257639,1779999084000,-3100.0,0.00039531,120]
[423257640,1779999084000,-3100.0,0.00039531,120]
[423257637,1779999084000,-3100.0,0.00039531,120]
[423257644,1779999084000,-3100.0,0.00039531,120]
[423257641,1779999084000,-3100.0,0.00039531,120]
[423257643,1779999084000,-3100.0,0.00039531,120]
[423257647,1779999084000,-3100.0,0.00039531,120]
[423257645,1779999084000,-3100.0,0.00039531,120]
[423257646,1779999084000,-3100.0,0.00039531,120]
[423257632,1779999084000,-3100.0,0.00039531,120]
[423257642,1779999084000,-3100.0,0.00039531,120]
[423257627,1779999084000,-3100.0,0.00039531,120]
[423257618,1779999084000,-500.0,0.00039531,120]
[423257634,1779999084000,-3100.0,0.00039531,120]
[423257633,1779999084000,-3100.0,0.00039531,120]
[423257630,1779999084000,-3100.0,0.00039531,120]
[423257629,1779999084000,-3100.0,0.00039531,120]
[423257628,1779999084000,-3100.0,0.00039531,120]
[423257626,1779999084000,-303.40891052,0.00039531,120]
[423257622,1779999084000,-500.0,0.00039531,120]
[423257623,1779999084000,-500.0,0.00039531,120]
[423257624,1779999084000,-500.0,0.00039531,120]
[423257625,1779999084000,-306.03924541,0.00039531,120]
[423257621,1779999084000,-500.0,0.00039531,120]
[423257617,1779999084000,-500.0,0.00039531,120]
[423257620,1779999084000,-500.0,0.00039531,120]
[423257654,1779999084000,-3100.0,0.00039531,120]
[423257631,1779999084000,-3100.0,0.00039531,120]
[423257651,1779999084000,-3100.0,0.00039531,120]
[423257619,1779999084000,-500.0,0.00039531,120]
[423257652,1779999084000,-3100.0,0.00039531,120]
[423257665,1779999084000,-3100.0,0.00039531,120]
[423257669,1779999084000,-3100.0,0.00039531,120]
[423257664,1779999084000,-3100.0,0.00039531,120]
[423257667,1779999084000,-3100.0,0.00039531,120]
[423257675,1779999084000,-199.246353,0.00039531,34]
[423257674,1779999084000,-1413.44706533,0.00039531,120]
[423257668,1779999084000,-3100.0,0.00039531,120]
[423257677,1779999084000,-464.44470391,0.00039532,2]
[423257679,1779999084000,-36250.97955884,0.00039532,30]
[423257680,1779999084000,-8615.698,0.00039532,30]
[423257681,1779999084000,-6574.56122156,0.00039532,30]
[423257683,1779999084000,-317.90634479,0.00039532,30]
[423257682,1779999084000,-1745.79814126,0.00039532,30]
[423257653,1779999084000,-3100.0,0.00039531,120]
[423257678,1779999084000,-58283052.49700457,0.00039532,30]
[423257666,1779999084000,-3100.0,0.00039531,120]
[423257676,1779999084000,-437172.12275034,0.00039531,26]
[423257672,1779999084000,-3100.0,0.00039531,120]
[423257658,1779999084000,-3100.0,0.00039531,120]
[423257649,1779999084000,-3100.0,0.00039531,120]
[423257660,1779999084000,-3100.0,0.00039531,120]
[423257659,1779999084000,-3100.0,0.00039531,120]
[423257655,1779999084000,-3100.0,0.00039531,120]
[423257657,1779999084000,-3100.0,0.00039531,120]
[423257656,1779999084000,-3100.0,0.00039531,120]
[423257650,1779999084000,-3100.0,0.00039531,120]
[423257662,1779999084000,-3100.0,0.00039531,120]
[423257663,1779999084000,-3100.0,0.00039531,120]
[423257671,1779999084000,-3100.0,0.00039531,120]
[423257670,1779999084000,-3100.0,0.00039531,120]
[423257661,1779999084000,-3100.0,0.00039531,120]
[423257648,1779999084000,-3100.0,0.00039531,120]
[423257673,1779999084000,-3100.0,0.00039531,120]
[423257685,1779999179000,393.62,0.00025519,120]
[423257686,1779999180000,393.62,0.00028071,120]
[423257689,1779999236000,-150.0,0.00012139,2]
[423257690,1779999386000,-250.0,0.00012326,2]
[423257691,1779999393000,166.9,0.00010486,2]
[423257696,1779999743000,79850.0,0.000107,2]
[423257708,1779999745000,-151.46,0.00027686,30]
[423257707,1779999745000,-1070.25,0.00027601,30]
[423257705,1779999745000,-154.45,0.0002514,30]
[423257706,1779999745000,-1192.45,0.00027597,30]
[423257704,1779999745000,-159.43706869,0.00016438,30]
[423257702,1779999745000,-159.4370687,0.00016438,30]
[423257703,1779999745000,-159.4370687,0.00016438,30]
[423257700,1779999745000,-159.4370687,0.00016438,30]
[423257699,1779999745000,-208.12,0.00015078,76]
[423257698,1779999745000,-208.13,0.00015078,50]
[423257697,1779999745000,-208.13,0.00015078,34]
[423257710,1779999745000,-755.92,0.00027791,30]
[423257701,1779999745000,-159.4370687,0.00016438,30]
[423257709,1779999745000,-150.49,0.00027696,30]
[423257720,1779999745000,-1070.25,0.00028067,30]
[423257712,1779999745000,-652.94,0.00027794,30]
[423257724,1779999745000,-652.94,0.00028196,30]
[423257711,1779999745000,-2043.67,0.00027792,30]
[423257725,1779999745000,-2359.81,0.00028197,30]
[423257722,1779999745000,-2043.67,0.00028194,30]
[423257721,1779999745000,-150.49,0.00028086,30]
[423257719,1779999745000,-1192.45,0.00028064,30]
[423257723,1779999745000,-755.92,0.00028194,30]
[423257718,1779999745000,-151.46,0.00028049,30]
[423257716,1779999745000,-151.46,0.00027928,30]
[423257713,1779999745000,-2359.81,0.00027796,30]
[423257715,1779999745000,-150.49,0.00027826,30]
[423257714,1779999745000,-151.46,0.00027807,30]
[423257717,1779999745000,-150.49,0.00027956,30]
[423257741,1779999746000,-158.0,0.00029777,30]
[423257735,1779999746000,-157.0,0.00029777,30]
[423257740,1779999746000,-156.0,0.00029777,30]
[423257739,1779999746000,-410.0,0.00029777,30]
[423257738,1779999746000,-1050.0,0.00029777,30]
[423257737,1779999746000,-151.0,0.00029777,30]
[423257736,1779999746000,-283.0,0.00029777,30]
[423257728,1779999746000,-500.0,0.00029112,30]
[423257734,1779999746000,-159.0,0.00029766,30]
[423257732,1779999746000,-158.0,0.00029766,30]
[423257729,1779999746000,-293.4,0.00029188,120]
[423257731,1779999746000,-151.0,0.00029766,30]
[423257730,1779999746000,-706.0,0.00029766,30]
[423257726,1779999746000,-513.88898,0.00028618,120]
[423257727,1779999746000,-500.0,0.00029112,120]
[423257742,1779999746000,-195.91233686,0.0003,30]
[423257733,1779999746000,-489.0,0.00029766,30]
[423257744,1779999746000,-10210.84705811,0.00030135,120]
[423257751,1779999746000,-157.0,0.00030777,30]
[423257745,1779999746000,-393.62,0.00030623,120]
[423257763,1779999746000,-159.0,0.00031766,30]
[423257761,1779999746000,-158.0,0.00031766,30]
[423257760,1779999746000,-151.0,0.00031766,30]
[423257762,1779999746000,-489.0,0.00031766,30]
[423257759,1779999746000,-706.0,0.00031766,30]
[423257757,1779999746000,-158.0,0.00030777,30]
[423257758,1779999746000,-632.0,0.00031635,30]
[423257756,1779999746000,-156.0,0.00030777,30]
[423257743,1779999746000,-4892.81297991,0.0003013,30]
[423257754,1779999746000,-1050.0,0.00030777,30]
[423257752,1779999746000,-283.0,0.00030777,30]
[423257753,1779999746000,-151.0,0.00030777,30]
[423257749,1779999746000,-489.0,0.00030766,30]
[423257750,1779999746000,-159.0,0.00030766,30]
[423257747,1779999746000,-151.0,0.00030766,30]
[423257748,1779999746000,-158.0,0.00030766,30]
[423257746,1779999746000,-706.0,0.00030766,30]
[423257755,1779999746000,-410.0,0.00030777,30]
[423257774,1779999747000,-706.0,0.00032766,30]
[423257776,1779999747000,-158.0,0.00032766,30]
[423257780,1779999747000,-283.0,0.00032777,30]
[423257779,1779999747000,-157.0,0.00032777,30]
[423257778,1779999747000,-159.0,0.00032766,30]
[423257775,1779999747000,-151.0,0.00032766,30]
[423257777,1779999747000,-489.0,0.00032766,30]
[423257773,1779999747000,-170.128,0.00032434,32]
[423257769,1779999747000,-156.0,0.00031777,30]
[423257772,1779999747000,-4078.226,0.00032434,32]
[423257771,1779999747000,-1740.28174911,0.00032,120]
[423257767,1779999747000,-1050.0,0.00031777,30]
[423257768,1779999747000,-410.0,0.00031777,30]
[423257766,1779999747000,-151.0,0.00031777,30]
[423257765,1779999747000,-283.0,0.00031777,30]
[423257781,1779999747000,-151.0,0.00032777,30]
[423257770,1779999747000,-158.0,0.00031777,30]
[423257764,1779999747000,-157.0,0.00031777,30]
[423257782,1779999747000,-1050.0,0.00032777,30]
[423257784,1779999747000,-156.0,0.00032777,30]
[423257785,1779999747000,-158.0,0.00032777,30]
[423257800,1779999747000,-1758.68,0.000338,30]
[423257798,1779999747000,-156.0,0.00033777,30]
[423257799,1779999747000,-166.0,0.00033777,30]
[423257796,1779999747000,-1050.0,0.00033777,30]
[423257794,1779999747000,-283.0,0.00033777,30]
[423257795,1779999747000,-151.0,0.00033777,30]
[423257792,1779999747000,-159.0,0.00033766,30]
[423257797,1779999747000,-410.0,0.00033777,30]
[423257790,1779999747000,-158.0,0.00033766,30]
[423257791,1779999747000,-489.0,0.00033766,30]
[423257789,1779999747000,-151.0,0.00033766,30]
[423257788,1779999747000,-706.0,0.00033766,30]
[423257786,1779999747000,-1740.28174911,0.00033,120]
[423257787,1779999747000,-293.4,0.00033627,120]
[423257783,1779999747000,-410.0,0.00032777,30]
[423257793,1779999747000,-157.0,0.00033777,30]
[423257808,1779999748000,-157.0,0.00034777,30]
[423257818,1779999748000,-4129.01590096,0.00035,30]
[423257814,1779999748000,-500.0,0.00034799,120]
[423257815,1779999748000,-500.0,0.00034799,30]
[423257813,1779999748000,-156.0,0.00034777,30]
[423257812,1779999748000,-410.0,0.00034777,30]
[423257810,1779999748000,-151.0,0.00034777,30]
[423257811,1779999748000,-1050.0,0.00034777,30]
[423257817,1779999748000,-1740.28174911,0.00035,120]
[423257807,1779999748000,-162.54272136,0.00034766,30]
[423257806,1779999748000,-489.0,0.00034766,30]
[423257804,1779999748000,-151.0,0.00034766,30]
[423257805,1779999748000,-158.0,0.00034766,30]
[423257803,1779999748000,-706.0,0.00034766,30]
[423257802,1779999748000,-162.0,0.00034,30]
[423257801,1779999748000,-1740.28174911,0.000339,120]
[423257809,1779999748000,-283.0,0.00034777,30]
[423257819,1779999748000,-152.0,0.00035111,120]
[423257816,1779999748000,-777.61,0.000349,30]
[423257822,1779999748000,-500.0,0.00035616,120]
[423257820,1779999748000,-152.0,0.00035111,120]
[423257838,1779999748000,-216.38,0.000362,31]
[423257837,1779999748000,-1257.9,0.00036153,30]
[423257833,1779999748000,-156.0,0.00035777,30]
[423257834,1779999748000,-500.0,0.00035999,32]
[423257835,1779999748000,-1740.28174911,0.00036,120]
[423257832,1779999748000,-410.0,0.00035777,30]
[423257831,1779999748000,-1050.0,0.00035777,30]
[423257829,1779999748000,-283.0,0.00035777,30]
[423257836,1779999748000,-777.61,0.00036,30]
[423257828,1779999748000,-157.0,0.00035777,30]
[423257830,1779999748000,-151.0,0.00035777,30]
[423257823,1779999748000,-549.42,0.00035616,30]
[423257824,1779999748000,-706.0,0.00035766,30]
[423257821,1779999748000,-1758.68,0.000352,30]
[423257826,1779999748000,-158.0,0.00035766,30]
[423257825,1779999748000,-151.0,0.00035766,30]
[423257827,1779999748000,-489.0,0.00035766,30]
[423257839,1779999748000,-1758.68,0.000362,30]
[423257855,1779999749000,-155.04,0.00037515,60]
[423257849,1779999749000,-777.61,0.000371,30]
[423257853,1779999749000,-216.38,0.000374,37]
[423257854,1779999749000,-155.04,0.00037415,60]
[423257851,1779999749000,-155.04,0.00037215,60]
[423257852,1779999749000,-155.04,0.00037315,60]
[423257847,1779999749000,-155.04,0.00037015,60]
[423257850,1779999749000,-155.04,0.00037115,60]
[423257845,1779999749000,-185.468571,0.00037,35]
[423257846,1779999749000,-216.38,0.00037,35]
[423257843,1779999749000,-182.30430711,0.00036892,60]
[423257844,1779999749000,-155.04,0.00036915,60]
[423257842,1779999749000,-258.69,0.00036854,30]
[423257841,1779999749000,-155.04,0.00036815,60]
[423257840,1779999749000,-182.3,0.00036792,60]
[423257857,1779999749000,-155.04,0.00037615,60]
[423257848,1779999749000,-500.0,0.00037079,38]
[423257856,1779999749000,-11423.51,0.00037577,120]
[423257860,1779999749000,-3807.84,0.00037841,120]
[423257872,1779999749000,-155.04,0.00038315,60]
[423257858,1779999749000,-155.04,0.00037715,60]
[423257878,1779999749000,-5792.5919,0.0003864,30]
[423257877,1779999749000,-671.33,0.00038637,30]
[423257876,1779999749000,-155.04,0.00038615,120]
[423257875,1779999749000,-155.04,0.00038515,120]
[423257874,1779999749000,-216.38,0.000385,42]
[423257873,1779999749000,-155.04,0.00038415,120]
[423257870,1779999749000,-500.0,0.00038192,44]
[423257869,1779999749000,-185.468571,0.00038167,40]
[423257871,1779999749000,-155.04,0.00038215,60]
[423257866,1779999749000,-293.4,0.00038065,120]
[423257867,1779999749000,-155.04,0.00038115,60]
[423257865,1779999749000,-155.04,0.00038015,60]
[423257864,1779999749000,-1758.68,0.00038,30]
[423257862,1779999749000,-155.04,0.00037915,60]
[423257863,1779999749000,-756.0,0.00038,30]
[423257859,1779999749000,-155.04,0.00037815,60]
[423257861,1779999749000,-1758.68,0.000379,30]
[423257868,1779999749000,-1257.9,0.00038125,30]
[423257894,1779999750000,-777.61,0.00039,30]
[423257892,1779999750000,-155.77,0.00038999,120]
[423257893,1779999750000,-756.0,0.00039,30]
[423257895,1779999750000,-53670.0,0.00039,60]
[423257898,1779999750000,-249.49405,0.0003914,110]
[423257896,1779999750000,-316.92,0.00039017,60]
[423257899,1779999750000,-249.49405,0.0003914,110]
[423257887,1779999750000,-155.77,0.00038999,120]
[423257897,1779999750000,-150.0,0.00039092,120]
[423257891,1779999750000,-155.77,0.00038999,120]
[423257879,1779999750000,-214.08467176,0.00038673,120]
[423257889,1779999750000,-155.77,0.00038999,120]
[423257886,1779999750000,-155.77,0.00038999,120]
[423257885,1779999750000,-155.77,0.00038999,120]
[423257884,1779999750000,-170500.49406494,0.0003888,60]
[423257882,1779999750000,-258.76,0.00038826,30]
[423257883,1779999750000,-327.78992273,0.0003888,30]
[423257881,1779999750000,-216.38,0.00038733,43]
[423257880,1779999750000,-155.08886142,0.00038715,120]
[423257888,1779999750000,-155.77,0.00038999,120]
[423257900,1779999750000,-249.49405,0.0003914,110]
[423257920,1779999750000,-191.395305,0.00039531,34]
[423257903,1779999750000,-249.49405,0.0003914,110]
[423257922,1779999750000,-500.0,0.00039532,30]
[423257901,1779999750000,-249.49405,0.0003914,110]
[423257917,1779999750000,-287.52989891,0.00039446,120]
[423257921,1779999750000,-500.0,0.00039532,30]
[423257918,1779999750000,-317.74478148,0.00039446,120]
[423257916,1779999750000,-500.0,0.00039356,60]
[423257915,1779999750000,-500.0,0.00039356,60]
[423257913,1779999750000,-501.34381452,0.00039337,50]
[423257914,1779999750000,-500.0,0.00039356,60]
[423257919,1779999750000,-500.0,0.0003953,120]
[423257911,1779999750000,-178.42505933,0.000393,120]
[423257912,1779999750000,-156.8,0.00039315,59]
[423257902,1779999750000,-249.49406,0.0003914,110]
[423257904,1779999750000,-287.52989891,0.00039172,120]
[423257906,1779999750000,-219.51,0.00039233,30]
[423257905,1779999750000,-317.74478148,0.00039172,120]
[423257909,1779999750000,-1605.091,0.000393,120]
[423257908,1779999750000,-506.61237074,0.00039285,120]
[423257910,1779999750000,-1605.09,0.000393,120]
[423257907,1779999750000,-691.13,0.00039272,30]
[423257938,1779999751000,-2576.16,0.00039532,120]
[423257933,1779999751000,-2576.16,0.00039532,120]
[423257939,1779999751000,-2576.16,0.00039532,120]
[423257936,1779999751000,-2576.16,0.00039532,120]
[423257934,1779999751000,-2576.16,0.00039532,120]
[423257937,1779999751000,-2576.16,0.00039532,120]
[423257935,1779999751000,-2576.16,0.00039532,120]
[423257931,1779999751000,-2576.16,0.00039532,120]
[423257928,1779999751000,-428.12,0.00039532,30]
[423257930,1779999751000,-2576.16,0.00039532,120]
[423257929,1779999751000,-2576.08,0.00039532,120]
[423257927,1779999751000,-500.0,0.00039532,30]
[423257925,1779999751000,-500.0,0.00039532,30]
[423257924,1779999751000,-500.0,0.00039532,30]
[423257926,1779999751000,-500.0,0.00039532,30]
[423257923,1779999751000,-500.0,0.00039532,30]
[423257940,1779999751000,-2576.16,0.00039532,120]
[423257932,1779999751000,-2576.16,0.00039532,120]
[423257941,1779999751000,-2576.16,0.00039532,120]
[423257946,1779999751000,-426.63,0.00039532,120]
[423257942,1779999751000,-2576.16,0.00039532,120]
[423257943,1779999751000,-2576.16,0.00039532,120]
[423257960,1779999751000,-158.0,0.00039533,120]
[423257961,1779999751000,-489.0,0.00039533,120]
[423257959,1779999751000,-151.0,0.00039533,120]
[423257956,1779999751000,-633.96,0.00039532,30]
[423257957,1779999751000,-950.94,0.00039532,120]
[423257954,1779999751000,-151.0,0.00039532,30]
[423257955,1779999751000,-151.0,0.00039532,30]
[423257953,1779999751000,-151.0,0.00039532,30]
[423257958,1779999751000,-706.0,0.00039533,120]
[423257950,1779999751000,-151.0,0.00039532,30]
[423257951,1779999751000,-151.0,0.00039532,30]
[423257949,1779999751000,-151.0,0.00039532,30]
[423257948,1779999751000,-151.0,0.00039532,30]
[423257962,1779999751000,-159.0,0.00039533,120]
[423257947,1779999751000,-151.0,0.00039532,30]
[423257945,1779999751000,-284.42,0.00039532,30]
[423257944,1779999751000,-2576.16,0.00039532,120]
[423257952,1779999751000,-151.0,0.00039532,30]
[423257973,1779999752000,-151.0,0.00039533,30]
[423257974,1779999752000,-151.0,0.00039533,30]
[423257972,1779999752000,-151.0,0.00039533,30]
[423257971,1779999752000,-2775.063421,0.00039533,30]
[423257969,1779999752000,-151.0,0.00039533,30]
[423257970,1779999752000,-2775.063421,0.00039533,30]
[423257964,1779999752000,-151.0,0.00039533,30]
[423257966,1779999752000,-151.0,0.00039533,30]
[423257968,1779999752000,-151.0,0.00039533,30]
[423257965,1779999752000,-151.0,0.00039533,30]
[423257963,1779999752000,-162.0,0.00039533,120]
[423257976,1779999752000,-151.0,0.00039533,30]
[423257967,1779999752000,-151.0,0.00039533,30]
[423257975,1779999752000,-2775.063421,0.00039533,30]
[423257977,1779999752000,-2775.063421,0.00039533,30]
[423257990,1779999752000,-151.0,0.00039533,30]
[423257992,1779999752000,-2430.99673,0.00039533,30]
[423257991,1779999752000,-151.0,0.00039533,30]
[423257993,1779999752000,-504.477119,0.00039533,30]
[423257988,1779999752000,-2430.99673,0.00039533,30]
[423257986,1779999752000,-2430.99673,0.00039533,30]
[423257978,1779999752000,-191.312424,0.00039533,30]
[423257987,1779999752000,-504.477119,0.00039533,30]
[423257989,1779999752000,-504.477119,0.00039533,30]
[423257982,1779999752000,-504.477119,0.00039533,30]
[423257983,1779999752000,-2775.063421,0.00039533,30]
[423257981,1779999752000,-504.477119,0.00039533,30]
[423257984,1779999752000,-271.671968,0.00039533,30]
[423257979,1779999752000,-2775.063421,0.00039533,30]
[423257980,1779999752000,-2775.063421,0.00039533,30]
[423257985,1779999752000,-2775.063421,0.00039533,30]
[423258004,1779999753000,-3163.865892,0.00039533,30]
[423258008,1779999753000,-3163.865892,0.00039533,30]
[423258009,1779999753000,-3163.865892,0.00039533,30]
[423258011,1779999753000,-151.0,0.00039533,30]
[423258010,1779999753000,-151.0,0.00039533,30]
[423258014,1779999753000,-3163.865892,0.00039533,30]
[423258006,1779999753000,-151.0,0.00039533,30]
[423258007,1779999753000,-151.0,0.00039533,30]
[423258005,1779999753000,-2430.99673,0.00039533,30]
[423257996,1779999753000,-2430.99673,0.00039533,30]
[423258001,1779999753000,-151.0,0.00039533,30]
[423258002,1779999753000,-3163.865892,0.00039533,30]
[423258000,1779999753000,-151.0,0.00039533,30]
[423257999,1779999753000,-504.477119,0.00039533,30]
[423257997,1779999753000,-504.477119,0.00039533,30]
[423257998,1779999753000,-2430.99673,0.00039533,30]
[423257995,1779999753000,-504.477119,0.00039533,30]
[423257994,1779999753000,-2430.99673,0.00039533,30]
[423258003,1779999753000,-2430.99673,0.00039533,30]
[423258012,1779999753000,-3163.865892,0.00039533,30]
[423258030,1779999753000,-151.0,0.00039533,30]
[423258015,1779999753000,-151.0,0.00039533,30]
[423258013,1779999753000,-151.0,0.00039533,30]
[423258034,1779999753000,-151.0,0.00039533,30]
[423258033,1779999753000,-151.0,0.00039533,30]
[423258032,1779999753000,-719.725494,0.00039533,30]
[423258031,1779999753000,-719.725494,0.00039533,30]
[423258027,1779999753000,-719.725494,0.00039533,30]
[423258029,1779999753000,-151.0,0.00039533,30]
[423258026,1779999753000,-151.0,0.00039533,30]
[423258025,1779999753000,-719.725494,0.00039533,30]
[423258028,1779999753000,-151.0,0.00039533,30]
[423258023,1779999753000,-151.0,0.00039533,30]
[423258024,1779999753000,-152.003664,0.00039533,30]
[423258017,1779999753000,-151.142016,0.00039533,30]
[423258019,1779999753000,-151.0,0.00039533,30]
[423258018,1779999753000,-3163.865892,0.00039533,30]
[423258016,1779999753000,-151.0,0.00039533,30]
[423258020,1779999753000,-3163.865892,0.00039533,30]
[423258021,1779999753000,-151.0,0.00039533,30]
[423258022,1779999753000,-151.0,0.00039533,30]
[423258044,1779999754000,-156.142865,0.00039533,30]
[423258053,1779999754000,-823.472598,0.00039533,30]
[423258050,1779999754000,-823.472598,0.00039533,30]
[423258051,1779999754000,-823.472598,0.00039533,30]
[423258048,1779999754000,-823.472598,0.00039533,30]
[423258049,1779999754000,-823.472598,0.00039533,30]
[423258046,1779999754000,-151.0,0.00039533,30]
[423258047,1779999754000,-823.472598,0.00039533,30]
[423258045,1779999754000,-151.0,0.00039533,30]
[423258052,1779999754000,-823.472598,0.00039533,30]
[423258043,1779999754000,-151.0,0.00039533,30]
[423258042,1779999754000,-719.725494,0.00039533,30]
[423258040,1779999754000,-719.725494,0.00039533,30]
[423258038,1779999754000,-151.0,0.00039533,30]
[423258037,1779999754000,-151.0,0.00039533,30]
[423258036,1779999754000,-719.725494,0.00039533,30]
[423258039,1779999754000,-151.0,0.00039533,30]
[423258035,1779999754000,-719.725494,0.00039533,30]
[423258041,1779999754000,-151.0,0.00039533,30]
[423258056,1779999754000,-151.0,0.00039533,30]
[423258054,1779999754000,-231.356849,0.00039533,30]
[423258057,1779999754000,-151.0,0.00039533,30]
[423258076,1779999754000,-2813.942987,0.00039533,30]